fUSD/lending_fUSD_20250702
["ID","MTS","AMOUNT","RATE_DAILY","PERIOD"]
[369060426,1751448633250,-745.63987481,0.00016612,2]
[369060429,1751448633262,-1322.4169452,0.00016612,2]
[369060433,1751448633290,-6260.4636759,0.00016612,2]
[369060435,1751448633301,-10786.55033822,0.00016612,2]
[369060437,1751448633313,-15422.04183391,0.00016612,2]
[369060439,1751448633322,-283.4782,0.00016612,2]
[369060441,1751448633332,-151.0,0.00016639,2]
[369060443,1751448633341,-151.0,0.00016665,2]
[369060445,1751448633350,-151.0,0.00016688,2]
[369060447,1751448633360,-500.0,0.00016692,2]
[369060449,1751448633369,-836.11932155,0.00016693,2]
[369060451,1751448633379,-1000.0,0.00016695,2]
[369060453,1751448633388,-151.0,0.00016716,2]
[369060455,1751448633398,-500.0,0.00016729,2]
[369060457,1751448633408,-1000.0,0.00016781,2]
[369060459,1751448633417,-1000.0,0.00016866,2]
[369060461,1751448633427,-220.0,0.000169,2]
[369060463,1751448633436,-1000.0,0.00016952,2]
[369060465,1751448633445,-593.88,0.00016985,2]
[369060467,1751448633454,-300.0,0.00017,2]
[369060469,1751448633463,-1569.13,0.00017,2]
[369060471,1751448633472,-1000.0,0.00017038,2]
[369060473,1751448633482,-428.79030773,0.00017123,2]
[369060475,1751448633494,-571.20969227,0.00017123,2]
[369060477,1751448633503,-820.94357687,0.00017136,2]
[369060479,1751448633514,-300.78790528,0.00017136,2]
[369060488,1751448633587,-3555.83297878,0.00017136,2]
[369060490,1751448633598,-281.66662129,0.00017136,2]
[369060492,1751448633609,-220.0,0.00017151,2]
[369060494,1751448633618,-873.87320388,0.00017178,2]
[369060502,1751448633685,-1901.07551923,0.00017178,2]
[369060504,1751448633697,-2061.39474624,0.00017178,2]
[369060506,1751448633709,-1499.69232599,0.00017178,2]
[369060508,1751448633721,-291.51472036,0.00017178,2]
[369060651,1751448637953,-658.47843359,0.00017178,2]
[369060652,1751448637964,-1214.92789561,0.00017178,2]
[369060653,1751448637975,-4542.37211222,0.00017178,2]
[369060654,1751448638007,-1301.31351445,0.00017178,2]
[369060655,1751448638017,-1000.0,0.00017209,2]
[369060656,1751448638027,-931.0,0.00017236,2]
[369060657,1751448638037,-560.0,0.00017236,2]
[369060658,1751448638047,-887.0,0.00017236,2]
[369060659,1751448638056,-949.0,0.00017236,2]
[369060660,1751448638065,-298.646,0.00017236,2]
[369060661,1751448638075,-4107.0,0.00017236,2]
[369060662,1751448638085,-6349.37765796,0.00017279,2]
[369060663,1751448638120,-869.73304025,0.00017279,2]
[369060664,1751448638130,-1000.0,0.00017295,2]
[369060665,1751448638140,-220.0,0.00017375,2]
[369060666,1751448638150,-303.48,0.0001738,2]
[369060667,1751448638161,-1000.0,0.0001738,2]
[369060668,1751448638170,-220.0,0.00017421,2]
[369060669,1751448638180,-302.58,0.00017458,2]
[369060670,1751448638190,-1000.0,0.00017466,2]
[369060671,1751448638199,-501.19137874,0.0001755,2]
[369060672,1751448638209,-500.0,0.0001755,2]
[369060673,1751448638218,-418.5588185,0.0001755,2]
[369060674,1751448638230,-81.4411815,0.0001755,2]
[369060675,1751448638240,-593.63881631,0.0001755,2]
[369060676,1751448638249,-96.40068244,0.00017551,2]
[369060890,1751448640480,-273.1415,0.00017551,2]
[369060893,1751448640504,-630.45781756,0.00017551,2]
[369060895,1751448640513,-239.52267037,0.00017637,2]
[369060897,1751448640526,-760.47732963,0.00017637,2]
[369060899,1751448640535,-145.49447552,0.00017723,2]
[369060901,1751448640547,-410.84697194,0.00017723,2]
[369060909,1751448640616,-317.28181432,0.00017723,2]
[369060912,1751448640630,-126.37673822,0.00017723,2]
[369060914,1751448640640,-1000.0,0.00017808,2]
[369060916,1751448640650,-220.0,0.00017863,2]
[369060918,1751448640659,-915.38556863,0.00017894,2]
[369061266,1751448643975,-6747.32118462,0.00017236,2]
[369061272,1751448644027,-403.67881538,0.00017236,2]
[369061274,1751448644036,-84.61443137,0.00017894,2]
[369061276,1751448644046,-150.0,0.00017909,2]
[369061278,1751448644056,-502.0653065,0.00017973,2]
[369061280,1751448644065,-501.08574703,0.00017973,2]
[369061282,1751448644074,-500.85687905,0.00017973,2]
[369061284,1751448644083,-500.0,0.00017973,2]
[369061286,1751448644093,-591.73286324,0.00017973,2]
[369061288,1751448644102,-150.13295585,0.00017979,2]
[369061290,1751448644112,-1000.0,0.00017979,2]
[369061292,1751448644121,-1000.0,0.00017982,2]
[369061294,1751448644131,-160.29,0.0001799,2]
[369061296,1751448644140,-460.0,0.00017999,2]
[369061298,1751448644150,-460.0,0.00017999,2]
[369061300,1751448644159,-460.0,0.00017999,2]
[369061302,1751448644169,-460.0,0.00017999,2]
[369061304,1751448644178,-460.0,0.00017999,2]
[369061306,1751448644188,-460.0,0.00017999,2]
[369061308,1751448644197,-460.0,0.00017999,2]
[369061310,1751448644207,-460.0,0.00017999,2]
[369061312,1751448644216,-177.49,0.00017999,2]
[369061314,1751448644225,-182.21368523,0.00017999,2]
[369061316,1751448644234,-500.0,0.00017999,2]
[369061318,1751448644244,-500.0,0.00017999,2]
[369061319,1751448644253,-196.37631199,0.00017999,2]
[369061322,1751448644263,-449.3187507,0.00017999,2]
[369061324,1751448644273,-438.72482544,0.00017999,2]
[369061326,1751448644282,-500.0,0.00017999,2]
[369061327,1751448644291,-598267.80110506,0.00018,2]
[369061330,1751448644302,-108968.34573258,0.00018,2]
[369061331,1751448644311,-500.0,0.00018003,2]
[369061333,1751448644320,-220.0,0.00018013,2]
[369061335,1751448644329,-2351.0,0.00018028,2]
[369061337,1751448644339,-1000.0,0.00018065,2]
[369061339,1751448644348,-7219.11069821,0.00018072,2]
[369061341,1751448644358,-1000.0,0.00018151,2]
[369061343,1751448644367,-500.0,0.00018202,2]
[369061345,1751448644376,-511.03336575,0.00018202,2]
[369061347,1751448644385,-500.0,0.00018202,2]
[369061349,1751448644395,-23895.36663167,0.00018202,2]
[369061351,1751448644404,-220.0,0.00018213,2]
[369061353,1751448644413,-1000.0,0.00018236,2]
[369061355,1751448644423,-1000.0,0.00018322,2]
[369061357,1751448644432,-1000.0,0.00018329,2]
[369061359,1751448644441,-85674.6,0.00018356,2]
[369061361,1751448644450,-500.0,0.00018373,2]
[369061363,1751448644460,-1000.0,0.00018408,2]
[369061365,1751448644469,-1000.0,0.00018493,2]
[369061367,1751448644478,-606.69818331,0.00018503,2]
[369061369,1751448644488,-1000.0,0.00018521,2]
[369061371,1751448644497,-1000.0,0.00018551,2]
[369061373,1751448644506,-1000.0,0.00018579,2]
[369061375,1751448644516,-160.29,0.0001862,2]
[369061377,1751448644525,-2349.55680553,0.00018628,2]
[369061379,1751448644534,-223687.6169062,0.0001863,2]
[369061535,1751448646128,-200.0,0.000179,6]
[369061536,1751448646138,-3832.75185255,0.0001863,2]
[369061539,1751448646151,-5379.4671362,0.0001863,2]
[369061554,1751448646286,-76196.64050135,0.0001863,2]
[369061582,1751448646539,-279.84413999,0.0001863,2]
[369063211,1751448664130,-600.75,0.0001863,2]
[369063229,1751449231624,156.46,0.00013699,2]
[369063333,1751449833109,-250.0,0.00015,2]
[369063334,1751449833120,-1200.0,0.00016437,2]
[369063336,1751449833129,-300.0,0.00016437,2]
[369063338,1751449833139,-166.731889,0.00016438,2]
[369063340,1751449833149,-47.61713917,0.00016438,2]
[369063459,1751449838168,-588.57891618,0.00016438,2]
[369063460,1751449838218,-145.51387265,0.00016438,2]
[369063461,1751449838229,-217.41151231,0.00016438,2]
[369063462,1751449838429,-564.29841569,0.00016438,2]
[369063463,1751449838439,-249.23076004,0.00016438,2]
[369063470,1751449840415,-538.9287105,0.00016438,2]
[369063471,1751449840588,-349.56884265,0.00016438,2]
[369063472,1751449840605,-321.93689518,0.00016438,2]
[369063473,1751449840743,-405.89734009,0.00016438,2]
[369063507,1751449843663,-576.57571739,0.00016438,2]
[369063508,1751449843694,-1397.27406227,0.00016438,2]
[369063525,1751449846371,-766.14335463,0.00016438,2]
[369063526,1751449846539,-583.85664537,0.00016438,2]
[369063527,1751449846557,-481.23288188,0.00016438,2]
[369063528,1751449846570,-546.49479887,0.00016438,2]
[369063529,1751449846792,-235.21512913,0.00016438,2]
[369063530,1751449846806,-841.33227747,0.00016438,2]
[369063537,1751450244984,156.46,0.00013699,2]
[369063551,1751451031428,-396.05317865,0.00016235,2]
[369063552,1751451031441,-383.45171911,0.00016235,2]
[369063553,1751451031450,-196.49510224,0.00016437,2]
[369063554,1751451031539,-1003.50489776,0.00016437,2]
[369063555,1751451031548,-500.0,0.00016438,2]
[369063556,1751451031558,-500.0,0.00016438,2]
[369063557,1751451031568,-224.44667981,0.00016438,2]
[369063558,1751451031577,-200.0,0.00016438,2]
[369063559,1751451031587,-2589.87447,0.00016438,2]
[369063560,1751451031596,-200.0,0.00016438,2]
[369063561,1751451031606,-200.0,0.00016602,2]
[369063562,1751451031615,-500.0,0.00016685,2]
[369063563,1751451031625,-200.0,0.00016768,2]
[369063564,1751451031634,-836.11932155,0.00016998,2]
[369063565,1751451031644,-1412.22,0.00017,2]
[369063566,1751451031653,-11306.90535965,0.00017187,2]
[369063567,1751451031663,-42037.63841646,0.00017187,2]
[369063627,1751451037539,-842.444617,0.00017187,2]
[369063807,1751451039654,-2701.8,0.00017187,2]
[369064126,1751451042683,-3517.66090245,0.00017187,2]
[369064133,1751451042730,-2420.9,0.00017187,2]
[369064436,1751451045555,-766.53410301,0.00017187,2]
[369064438,1751451045568,-125716.75561648,0.00017187,2]
[369064440,1751451045579,-4478.44833311,0.00017187,2]
[369064442,1751451045589,-2000.0,0.000172,2]
[369064444,1751451045599,-338.0,0.00017288,2]
[369064446,1751451045608,-246.642,0.00017297,2]
[369064448,1751451045618,-207.4,0.00017297,2]
[369064450,1751451045627,-509.51783008,0.00017373,2]
[369064452,1751451045637,-161.85973123,0.00017373,2]
[369064454,1751451045647,-300.0,0.00017396,2]
[369064456,1751451045657,-150.566,0.00017407,2]
[369064458,1751451045667,-150.0,0.00017407,2]
[369064486,1751451045928,-180.388,0.00017407,2]
[369064489,1751451045947,-194.048,0.00017407,2]
[369064491,1751451045957,-150.0,0.00017407,2]
[369064493,1751451045967,-150.0,0.00017407,2]
[369064495,1751451045977,-150.704,0.00017407,2]
[369064497,1751451045986,-3341.0,0.00017407,2]
[369064499,1751451045999,-1003.19,0.00017407,2]
[369064501,1751451046009,-156.0,0.00017407,2]
[369064503,1751451046019,-1921.432,0.00017407,2]
[369064505,1751451046028,-858.0,0.00017407,2]
[369064507,1751451046037,-753.0,0.00017407,2]
[369064509,1751451046047,-361.64,0.00017657,2]
[369064511,1751451046057,-1000.0,0.00017669,2]
[369064513,1751451046066,-200.0,0.00017876,7]
[369064515,1751451046075,-176.74,0.00017881,2]
[369064517,1751451046085,-6087.63050877,0.000179,2]
[369064519,1751451046095,-300.0,0.00017944,2]
[369064521,1751451046104,-526.82357722,0.00017999,2]
[369064523,1751451046113,-500.0,0.00017999,2]
[369064525,1751451046122,-513.58332965,0.00017999,2]
[369064527,1751451046131,-250.673994,0.00017999,2]
[369064529,1751451046141,-500.0,0.00018,2]
[369064531,1751451046150,-500.0,0.00018,2]
[369064532,1751451046159,-500.0,0.00018,2]
[369064533,1751451046169,-500.0,0.00018,2]
[369064534,1751451046178,-500.0,0.00018,2]
[369064535,1751451046187,-24232.85355281,0.00018,2]
[369064537,1751451046196,-501.37748484,0.00018,2]
[369064539,1751451046206,-4478.44833305,0.00018036,2]
[369064541,1751451046215,-385.0,0.00018053,2]
[369064543,1751451046224,-166.67,0.00018196,2]
[369064545,1751451046233,-1000.0,0.00018329,2]
[369064547,1751451046242,-2589.87448,0.00018438,2]
[369064549,1751451046252,-300.0,0.00018492,2]
[369064551,1751451046262,-6087.63050854,0.0001859,2]
[369064553,1751451046271,-210.0,0.000186,2]
[369064555,1751451046281,-200.0,0.000186,6]
[369064557,1751451046290,-200.0,0.0001863,2]
[369064559,1751451046299,-200.0,0.0001863,2]
[369064561,1751451046308,-151.0,0.0001863,2]
[369064563,1751451046318,-300.0,0.0001863,2]
[369064565,1751451046327,-1000.0,0.00018664,2]
[369064567,1751451046336,-215.0738,0.00018666,2]
[369064569,1751451046346,-500.0,0.000187,6]
[369064571,1751451046355,-1000.0,0.0001875,2]
[369064573,1751451046366,-213.52190772,0.000188,2]
[369064575,1751451046375,-700.0,0.000188,6]
[369064577,1751451046384,-200.0,0.00018816,2]
[369064579,1751451046393,-200.0,0.00018816,2]
[369064581,1751451046407,-1000.0,0.00018836,2]
[369064583,1751451046416,-304.93396126,0.00018838,2]
[369064585,1751451046426,-2702.57305123,0.00018886,2]
[369064588,1751451046439,-1775.87528182,0.00018886,2]
[369064590,1751451046448,-500.0,0.000189,2]
[369064592,1751451046457,-500.0,0.000189,2]
[369064594,1751451046467,-500.0,0.000189,2]
[369064596,1751451046476,-500.0,0.000189,2]
[369064598,1751451046485,-500.0,0.000189,2]
[369064600,1751451046494,-500.0,0.000189,2]
[369064602,1751451046503,-500.0,0.000189,2]
[369064604,1751451046513,-500.0,0.000189,2]
[369064606,1751451046522,-500.0,0.000189,2]
[369064608,1751451046531,-500.0,0.000189,2]
[369064610,1751451046540,-500.0,0.000189,2]
[369064612,1751451046550,-500.0,0.000189,2]
[369064614,1751451046560,-500.0,0.000189,2]
[369064616,1751451046569,-500.0,0.000189,2]
[369064618,1751451046579,-500.0,0.000189,2]
[369064620,1751451046588,-500.0,0.000189,2]
[369064622,1751451046597,-500.0,0.000189,2]
[369064624,1751451046606,-500.0,0.000189,2]
[369064626,1751451046615,-500.0,0.000189,2]
[369064628,1751451046624,-500.0,0.000189,2]
[369064630,1751451046633,-500.0,0.000189,2]
[369064632,1751451046642,-500.0,0.000189,2]
[369064634,1751451046652,-500.0,0.000189,2]
[369064636,1751451046661,-500.0,0.000189,2]
[369064638,1751451046671,-924.0,0.000189,2]
[369064640,1751451046680,-500.0,0.000189,2]
[369064642,1751451046689,-500.0,0.000189,2]
[369064644,1751451046700,-500.0,0.000189,2]
[369064646,1751451046711,-500.0,0.000189,2]
[369064648,1751451046720,-500.0,0.000189,2]
[369064650,1751451046729,-500.0,0.000189,2]
[369064652,1751451046739,-500.0,0.000189,2]
[369064654,1751451046749,-500.0,0.000189,2]
[369064656,1751451046759,-500.0,0.000189,2]
[369064658,1751451046768,-500.0,0.000189,2]
[369064659,1751451046779,-500.0,0.000189,2]
[369064661,1751451046790,-500.0,0.000189,2]
[369064663,1751451046799,-500.0,0.000189,2]
[369064665,1751451046808,-500.0,0.000189,2]
[369064667,1751451046818,-500.0,0.000189,2]
[369064670,1751451046828,-500.0,0.000189,2]
[369064672,1751451046838,-500.0,0.000189,2]
[369064674,1751451046847,-500.0,0.000189,2]
[369064676,1751451046856,-500.0,0.000189,2]
[369064678,1751451046866,-500.0,0.000189,2]
[369064679,1751451046875,-500.0,0.000189,2]
[369064681,1751451046884,-500.0,0.000189,2]
[369064683,1751451046893,-500.0,0.000189,2]
[369064686,1751451046903,-500.0,0.000189,2]
[369064687,1751451046912,-500.0,0.000189,2]
[369064689,1751451046921,-500.0,0.000189,2]
[369064691,1751451046931,-500.0,0.000189,2]
[369064694,1751451046940,-500.0,0.000189,2]
[369064696,1751451046950,-500.0,0.000189,2]
[369064697,1751451046959,-500.0,0.000189,2]
[369064700,1751451046968,-500.0,0.000189,2]
[369064701,1751451046978,-500.0,0.000189,2]
[369064704,1751451046988,-500.0,0.000189,2]
[369064705,1751451047000,-500.0,0.000189,2]
[369064708,1751451047010,-500.0,0.000189,2]
[369064709,1751451047020,-500.0,0.000189,2]
[369064711,1751451047032,-500.0,0.000189,2]
[369064713,1751451047041,-500.0,0.000189,2]
[369064715,1751451047050,-500.0,0.000189,2]
[369064717,1751451047059,-500.0,0.000189,2]
[369064719,1751451047068,-500.0,0.000189,2]
[369064722,1751451047078,-500.0,0.000189,2]
[369064724,1751451047087,-500.0,0.000189,2]
[369064726,1751451047096,-500.0,0.000189,2]
[369064728,1751451047105,-500.0,0.000189,2]
[369064730,1751451047115,-500.0,0.000189,2]
[369064732,1751451047123,-500.0,0.000189,2]
[369064734,1751451047133,-500.0,0.000189,2]
[369064736,1751451047142,-500.0,0.000189,2]
[369064737,1751451047151,-500.0,0.000189,2]
[369064739,1751451047160,-500.0,0.000189,2]
[369064742,1751451047169,-500.0,0.000189,2]
[369064744,1751451047179,-500.0,0.000189,2]
[369064746,1751451047187,-500.0,0.000189,2]
[369064748,1751451047197,-500.0,0.000189,2]
[369064750,1751451047206,-500.0,0.000189,2]
[369064752,1751451047215,-500.0,0.000189,2]
[369064754,1751451047225,-533.0,0.000189,2]
[369064756,1751451047234,-1000.0,0.000189,6]
[369064758,1751451047244,-500.0,0.000189,2]
[369064760,1751451047254,-500.0,0.000189,2]
[369064762,1751451047263,-500.0,0.000189,2]
[369064764,1751451047272,-908.0,0.000189,2]
[369064766,1751451047283,-500.0,0.000189,2]
[369064768,1751451047293,-500.0,0.000189,2]
[369064770,1751451047302,-500.0,0.000189,2]
[369064772,1751451047311,-500.0,0.000189,2]
[369064774,1751451047320,-301.44958398,0.000189,2]
[369065801,1751451236309,156.46,0.00013699,2]
[369065802,1751451381951,500.0,0.00027397,120]
[369065860,1751452231591,-1200.0,0.00016437,2]
[369065861,1751452231601,-300.0,0.00016437,2]
[369065862,1751452231610,-304.56,0.00016438,2]
[369065863,1751452231619,-303.85,0.00016438,2]
[369065864,1751452231628,-304.36,0.00016438,2]
[369065865,1751452231637,-305.74,0.00016438,2]
[369065866,1751452231647,-303.03,0.00016438,2]
[369065867,1751452231656,-300.94,0.00016438,2]
[369065868,1751452231665,-301.95,0.00016438,2]
[369065869,1751452231674,-302.74,0.00016438,2]
[369065870,1751452231683,-303.37,0.00016438,2]
[369065871,1751452231691,-111.3078225,0.00016438,2]
[369065872,1751452231705,-190.0321775,0.00016438,2]
[369065873,1751452231714,-75.0588225,0.00016438,2]
[369065874,1751452231806,-228.7811775,0.00016438,2]
[369065875,1751452231816,-302.8,0.00016438,2]
[369065876,1751452231826,-142.34614029,0.00016438,2]
[369065877,1751452231838,-162.31385971,0.00016438,2]
[369065878,1751452231847,-300.98,0.00016438,2]
[369065879,1751452231856,-171.86614029,0.00016438,2]
[369065880,1751452231868,-131.70385971,0.00016438,2]
[369065881,1751452231877,-305.42,0.00016438,2]
[369065882,1751452231887,-303.55,0.00016438,2]
[369065883,1751452231896,-302.21,0.00016438,2]
[369065885,1751452231905,-301.94,0.00016438,2]
[369065886,1751452231914,-302.96,0.00016438,2]
[369065888,1751452231923,-303.58,0.00016438,2]
[369065890,1751452231932,-305.18,0.00016438,2]
[369065892,1751452231942,-174.66328186,0.00016438,2]
[369065894,1751452231953,-128.53671814,0.00016438,2]
[369065896,1751452231963,-300.45,0.00016438,2]
[369065898,1751452231973,-303.33,0.00016438,2]
[369065899,1751452231983,-302.73,0.00016438,2]
[369065900,1751452231992,-300.68,0.00016438,2]
[369065901,1751452232003,-301.43,0.00016438,2]
[369065902,1751452232013,-305.49,0.00016438,2]
[369065903,1751452232024,-300.5,0.00016438,2]
[369065904,1751452232034,-302.48,0.00016438,2]
[369065905,1751452232043,-305.74,0.00016438,2]
[369065906,1751452232052,-304.46,0.00016438,2]
[369065907,1751452232069,-295.07778648,0.00016438,2]
[369065908,1751452232080,-5.46221352,0.00016438,2]
[369065909,1751452232099,-301.23,0.00016438,2]
[369065910,1751452232112,-302.86,0.00016438,2]
[369065911,1751452232121,-300.81,0.00016438,2]
[369065912,1751452232132,-302.64,0.00016438,2]
[369065913,1751452232141,-305.01,0.00016438,2]
[369065914,1751452232152,-301.55,0.00016438,2]
[369065915,1751452232161,-242.41033521,0.00016438,2]
[369065916,1751452232173,-58.32966479,0.00016438,2]
[369065917,1751452232183,-303.92,0.00016438,2]
[369065918,1751452232193,-300.7,0.00016438,2]
[369065919,1751452232202,-303.47,0.00016438,2]
[369065920,1751452232411,-304.11,0.00016438,2]
[369065921,1751452232438,-304.45,0.00016438,2]
[369065922,1751452232448,-303.19,0.00016438,2]
[369065923,1751452232461,-303.77,0.00016438,2]
[369065924,1751452232469,-302.49,0.00016438,2]
[369065925,1751452232479,-305.63,0.00016438,2]
[369065926,1751452232488,-201.34,0.00016743,2]
[369065927,1751452232498,-304.14,0.00017,2]
[369065928,1751452232507,-304.56,0.00017,2]
[369065929,1751452232516,-301.07,0.00017,2]
[369065930,1751452232525,-1286.75,0.00017,2]
[369065931,1751452232533,-887.0,0.00017599,2]
[369065932,1751452232543,-156.0,0.00017599,2]
[369065933,1751452232552,-5933.66933271,0.000179,2]
[369065934,1751452232561,-1000.0,0.00017923,2]
[369065935,1751452232570,-420.0,0.00017963,2]
[369065936,1751452232581,-500.0,0.00017999,2]
[369065937,1751452232594,-200.0,0.00018219,7]
[369065938,1751452232603,-1000.0,0.00018329,2]
[369065939,1751452232612,-779.50489776,0.0001838,2]
[369065940,1751452232621,-207.4,0.00018489,2]
[369065941,1751452232631,-17421.1073447,0.000185,2]
[369065942,1751452232640,-490.25060354,0.000185,2]
[369065943,1751452232650,-277.050609,0.00018521,2]
[369065944,1751452232659,-2500.0,0.00018578,2]
[369065945,1751452232667,-300.0,0.00018578,2]
[369065946,1751452232677,-5933.66933256,0.0001859,2]
[369065947,1751452232686,-500.0,0.00018629,2]
[369065948,1751452232695,-40022.92,0.0001863,2]
[369065949,1751452232704,-800.0,0.00018748,3]
[369065950,1751452232714,-2585.53606947,0.00018795,2]
[369065951,1751452232723,-3134.91383318,0.00018795,2]
[369065952,1751452232732,-186.83166922,0.00018795,2]
[369065953,1751452232741,-300.0,0.00018884,2]
[369065954,1751452232751,-500.0,0.00018894,2]
[369065955,1751452232760,-500.0,0.00018894,2]
[369065956,1751452232769,-500.0,0.00018894,2]
[369065957,1751452232780,-500.0,0.00018894,2]
[369065958,1751452232789,-672.0,0.00018894,2]
[369065959,1751452232799,-500.0,0.00018894,2]
[369065960,1751452232808,-500.0,0.00018894,2]
[369065961,1751452232817,-177.07097959,0.00018894,2]
[369065962,1751452232827,-94.33146481,0.00018894,2]
[369065963,1751452232838,-469.70307437,0.00018894,2]
[369065964,1751452232848,-500.0,0.00018894,2]
[369065965,1751452232857,-435.69181656,0.00018894,2]
[369065966,1751452232866,-1598.94169022,0.00018895,2]
[369065967,1751452232878,-750.83790753,0.00018895,2]
[369065968,1751452232888,-881.71597347,0.00018895,2]
[369065969,1751452232942,-4895.51758542,0.00018895,2]
[369065970,1751452232954,-787.0,0.00018895,2]
[369065971,1751452232965,-2820.15608459,0.00018895,2]
[369065972,1751452232976,-629.84571173,0.00018895,2]
[369065973,1751452232987,-1282.8814495,0.00018895,2]
[369065974,1751452232998,-922.4592818,0.00018895,2]
[369065975,1751452233056,-1068.12401483,0.00018895,2]
[369065976,1751452233067,-544.02,0.00018895,2]
[369065977,1751452233168,-72820.36712861,0.00018895,2]
[369065978,1751452233178,-236.528361,0.00018895,2]
[369065979,1751452233187,-151.0,0.00018895,2]
[369065980,1751452233196,-151.0,0.00018895,2]
[369065981,1751452233205,-193.413073,0.00018895,2]
[369065982,1751452233215,-193.413073,0.00018895,2]
[369065983,1751452233225,-151.0,0.00018895,2]
[369065984,1751452233236,-257.827412,0.00018895,2]
[369065985,1751452233247,-161.11157524,0.00018895,2]
[369065986,1751452233256,-150.0,0.00018895,2]
[369065987,1751452233265,-150.0,0.00018895,2]
[369065988,1751452233275,-500.0,0.00018895,2]
[369065989,1751452233284,-150.0,0.00018895,2]
[369065990,1751452233293,-1006.09743705,0.00018895,2]
[369065991,1751452233305,-136020.35637153,0.00018895,2]
[369065992,1751452233316,-28675.75573842,0.00018895,2]
[369065993,1751452233325,-500.0,0.00018895,2]
[369065994,1751452233334,-74189.1143599,0.00018895,2]
[369065995,1751452233344,-7209.5768614,0.00018895,2]
[369065996,1751452233354,-151.0,0.000189,2]
[369065997,1751452233373,-200.0,0.000189,2]
[369065998,1751452233391,-195.51776,0.000189,2]
[369065999,1751452233401,-216.409555,0.000189,2]
[369066000,1751452233413,-193.413073,0.000189,2]
[369066001,1751452233424,-193.413073,0.000189,2]
[369066002,1751452233439,-151.0,0.000189,2]
[369066003,1751452233450,-168.872517,0.000189,2]
[369066004,1751452233460,-151.0,0.000189,2]
[369066005,1751452233471,-272.238493,0.000189,2]
[369066006,1751452233482,-272.238493,0.000189,2]
[369066007,1751452233494,-151.0,0.000189,2]
[369066008,1751452233504,-202.696917,0.000189,2]
[369066009,1751452233514,-155.595329,0.000189,2]
[369066010,1751452233523,-151.0,0.000189,2]
[369066011,1751452233534,-1438.81915,0.000189,2]
[369066012,1751452233543,-500.0,0.00018903,2]
[369066013,1751452233553,-542.295972,0.00018908,2]
[369066014,1751452233562,-1000.0,0.00018921,2]
[369066015,1751452233572,-1000.0,0.00019007,2]
[369066016,1751452233582,-151.0,0.00019016,2]
[369066017,1751452233592,-213.69568,0.00019016,2]
[369066018,1751452233601,-343.0583,0.00019016,2]
[369066019,1751452233611,-343.0583,0.00019016,2]
[369066020,1751452233621,-1000.0,0.00019016,2]
[369066021,1751452233631,-1000.0,0.00019092,2]
[369066022,1751452233642,-15653.33928424,0.000191,2]
[369066023,1751452233651,-500.0,0.00019168,2]
[369066024,1751452233661,-500.0,0.00019168,2]
[369066025,1751452233670,-672.0,0.00019168,2]
[369066026,1751452233680,-500.0,0.00019168,2]
[369066027,1751452233689,-500.0,0.00019169,2]
[369066028,1751452233699,-150.0,0.00019169,2]